Cogmind - Beta 11.2 @@@ ROGUE MODE // 2022.12.30 @ 11:44:30 // Winter2022/Polymind Player: SURFACESEEKER Result: Destroyed by S-10 Pest with Light Assault Rifle Performance ------------- Evolutions (1) 500 Regions Visited (3) 600 Robots Destroyed (1) 5 Value Destroyed (45) 45 Prototype IDs (0) 0 Alien Tech Used (0) 0 Bonus (810) 810 TOTAL SCORE: 1770 Bonus ------- Polymind Skill 610 Pacifist 200 Cogmind --------- Core Integrity 0/400 Matter 0/0 Energy 52/100 System Corruption 6% Temperature Cool (0) Movement Core (50) Location -9/Storage Parts ------- > --- POWER (1) -------- (None) > --- PROPULSION (2) --- (None) > --- UTILITY (1) ------ (None) > --- WEAPON (1) ------- (None) > --- INVENTORY (0) ---- (None) Peak State ------------ > --- POWER ------------ Light Ion Engine > --- PROPULSION ------- Wheel Wheel > --- UTILITY ---------- Improved Terrain Scanner Seismic Detector > --- WEAPON ----------- Mining Laser > --- INVENTORY -------- (None) [Rating: 8] Favorites ----------- Power Light Ion Engine Engine Light Ion Engine Propulsion Wheel Leg Aluminum Leg Wheel Wheel Hover Unit Hover Unit Utility Improved Terrain Scanner Device Improved Terrain Scanner Hackware Hacking Suite Weapon Mining Laser Energy Gun Small Laser Special Weapon Mining Laser Special Melee Weapon Datajack Build | -11 -10 -9 -9 ------- Run | Scr Mat Mat Sto Slots Evolved . | . . . . Power . | . . . . Propulsion . | . . . . Utility . | . . . . Weapon . | . . . . Parts Attached . | . . . . Power . | . . . . Engine . | . . . . Core . | . . . . Reactor . | . . . . Propulsion . | . . . . Treads . | . . . . Leg . | . . . . Wheel . | . . . . Hover . | . . . . Flight . | . . . . Utility . | . . . . Device . | . . . . Storage . | . . . . Processor . | . . . . Hackware . | . . . . Protection . | . . . . Artifact . | . . . . Weapon . | . . . . Energy Gun . | . . . . Energy Cannon . | . . . . Ballistic Gun . | . . . . Ballistic Cannon . | . . . . Launcher . | . . . . Special Weapon . | . . . . Impact Weapon . | . . . . Slashing Weapon . | . . . . Piercing Weapon . | . . . . Special Melee Weapon . | . . . . Unidentified Prototypes . | . . . . Parts Lost 2 | . . . 2 Power . | . . . . Propulsion 1 | . . . 1 Utility . | . . . . Weapon 1 | . . . 1 Highest Loss Streak 2 | . . . 2 To Critical Strikes . | . . . . Average Slot Usage (%) 95 | . 100 100 91 Engine 17 | . 16 16 18 Leg 15 | . . 5 25 Wheel 14 | . 33 28 . Hover 4 | . . . 8 Device 22 | . 33 31 14 Hackware 2 | . . . 4 Energy Gun 8 | . . 2 14 Special Weapon 6 | . 16 14 . Special Melee Weapon 2 | . . . 4 Naked Turns 14 | . . . 14 Heaviest Build 7 | 6 6 7 7 Greatest Support 20 | 20 20 20 20 Greatest Overweight (x) 2 | . . . 2 Average Overweight (x) . | . . . . Largest Inventory Capacity 1 | . . 1 1 Average Capacity . | . . . . Most Carried . | . . . . Average Carried . | . . . . Final Capacity 1 | . . 1 . Final Carried . | . . . . Class Distribution -------------------- 44% | Tunneler 38% | Grunt 13% | Operator 4% | Cogmind Dominant Class ---------------- Tunneler | -10/Materials Tunneler | -9/Materials Grunt | -9/Storage Resources | -11 -10 -9 -9 ----------- Run | Scr Mat Mat Sto Matter Collected . | . . . . Remotely . | . . . . Salvage Created 77 | . . . 77 Parts 2 | . . . 2 Haulers Intercepted . | . . . . Recyclers Shooed . | . . . . Parts Field Recycled . | . . . . Retrieved Matter . | . . . . Parts Self-Destructed . | . . . . Prevented . | . . . . Kills | -11 -10 -9 -9 ------- Run | Scr Mat Mat Sto Combat Hostiles Destroyed 1 | . . . 1 Guns 1 | . . . 1 Classes Destroyed 1 | . . . 1 Sentry 1 | . . . 1 Best Kill Streak 1 | . . . 1 Combat Bots Only 1 | . . . 1 Max Kills in Single Turn 1 | . . . 1 Gunslinging . | . . . . Exploded . | . . . . Melee . | . . . . Uniques/NPCs Destroyed . | . . . . Combat | -11 -10 -9 -9 -------- Run | Scr Mat Mat Sto Damage Taken 685 | . . 108 577 Core 400 | . . 69 331 Absorbed by Shields . | . . . . Core Remaining (%) 100 | 100 100 . . Volleys Fired 11 | . 1 . 10 Largest 1 | . 1 . 1 Hottest 100 | . 100 . 40 Shots Fired 11 | . 1 . 10 Gun 10 | . . . 10 Cannon . | . . . . Launcher . | . . . . Special 1 | . 1 . . Kinetic . | . . . . Thermal 11 | . 1 . 10 Explosive . | . . . . Electromagnetic . | . . . . Robot Hit Streak 3 | . . . 3 Robot Miss Streak 1 | . . . 1 Penetration Max . | . . . . Secondary Targets . | . . . . Shots Hit Robots 9 | . . . 9 Core Hits 4 | . . 1 3 Critical Kills . | . . . . Critical Parts Destroyed . | . . . . Critical Strikes . | . . . . Melee Attacks 11 | . . . 11 Impact . | . . . . Slashing . | . . . . Piercing . | . . . . Sneak Attacks . | . . . . Combat Hostiles . | . . . . Follow-up Attacks . | . . . . Damage Inflicted 156 | . . 23 133 Guns 89 | . . . 89 Cannons . | . . . . Explosions . | . . . . Melee . | . . . . Ramming 67 | . . 23 44 Kinetic . | . . . . Thermal 89 | . . . 89 Explosive . | . . . . Electromagnetic . | . . . . Impact . | . . . . Slashing . | . . . . Piercing . | . . . . Highest Corruption 6 | . . 2 6 Average Corruption 2 | . . 2 3 Corruption Purged . | . . . . Corruption Blocked . | . . . . Effects 3 | . . 1 2 Message Errors 2 | . . 1 1 Data Loss (minor) 1 | . . . 1 Overload Shots . | . . . . Overflow Damage . | . . . . Projectiles . | . . . . Explosions . | . . . . Melee . | . . . . Knockbacks . | . . . . Impact . | . . . . Kinetic . | . . . . Secondary . | . . . . Self-Inflicted Damage 39 | . . 12 27 Shots . | . . . . Rammed 16 | . . 7 9 Targets Rammed 16 | . . 7 9 Kicked . | . . . . Crushed . | . . . . Highest Temperature 80 | . 80 . 72 Average Temperature 42 | . 58 . 38 Received Heat Transfer 255 | . . 36 219 Siege Activations . | . . . . Robots Corrupted . | . . . . Combat Hostiles . | . . . . Parts Fried . | . . . . Impact Corruptions . | . . . . Robots Melted . | . . . . Combat Hostiles . | . . . . Parts Melted 2 | . . . 2 Heat Transferred 200 | . . . 200 Parts Sabotaged . | . . . . Parts Stolen . | . . . . Parts Stripped . | . . . . Power Chain Reactions . | . . . . Missiles Intercepted . | . . . . Alert | -11 -10 -9 -9 ------- Run | Scr Mat Mat Sto Peak Influence 81 | . 7 32 81 Initial 11 | . . 2 11 Average 29 | . 1 19 50 Maximum Alert Level . | . . . . Low Security (%) 100 | 100 100 100 100 Level 1 . | . . . . Level 2 . | . . . . Level 3 . | . . . . Level 4 . | . . . . Level 5 . | . . . . High Security . | . . . . Max Security . | . . . . Squads Dispatched 3 | . . 1 2 Investigation . | . . . . Extermination . | . . . . Reinforcement 3 | . . 1 2 Assault . | . . . . Garrison . | . . . . Intercept . | . . . . Searches Triggered . | . . . . Construction Impeded . | . . . . Haulers Reinforced . | . . . . Active Scanning Responses . | . . . . Cargo Convoy Interrupts . | . . . . Stealth | -11 -10 -9 -9 --------- Run | Scr Mat Mat Sto Distress Signals . | . . . . Communications Jammed . | . . . . Distress Signals . | . . . . Times Spotted 16 | . . 3 13 Peak Tracking Total 7 | . . 1 7 Tactical Retreats . | . . . . Traps | -11 -10 -9 -9 ------- Run | Scr Mat Mat Sto Traps Triggered . | . . . . Indirectly . | . . . . Trap Hack Attempts . | . . . . Triggered . | . . . . Disarmed . | . . . . Reprogrammed . | . . . . Reused . | . . . . Traps Extracted . | . . . . Installed . | . . . . Triggered . | . . . . Machines | -11 -10 -9 -9 ---------- Run | Scr Mat Mat Sto Machines Disabled . | . . . . Max in Single Turn . | . . . . Machines Sabotaged . | . . . . Garrisons Compromised . | . . . . Overloaded Fab Kills . | . . . . Hacking | -11 -10 -9 -9 --------- Run | Scr Mat Mat Sto Machines Accessed 1 | . 1 . . Terminals 1 | . 1 . . Fabricators . | . . . . Repair Stations . | . . . . Recycling Units . | . . . . Scanalyzers . | . . . . Garrison Access . | . . . . Total Hacks 3 | . 3 . . Successful 2 | . 2 . . Failed 1 | . 1 . . Catastrophic . | . . . . Database Lockouts . | . . . . Manual . | . . . . Terminals 3 | . 3 . . Fabricators . | . . . . Repair Stations . | . . . . Recycling Units . | . . . . Scanalyzers . | . . . . Garrison Access . | . . . . Terminal Hacks 2 | . 2 . . Locate Traps 1 | . 1 . . Zone Layout 1 | . 1 . . Fabricator Hacks . | . . . . Repair Station Hacks . | . . . . Recycling Unit Hacks . | . . . . Scanalyzer . | . . . . Garrison Access Hacks . | . . . . Unauthorized Hacks . | . . . . Terminals . | . . . . Fabricators . | . . . . Repair Stations . | . . . . Recycling Units . | . . . . Scanalyzers . | . . . . Garrison Access . | . . . . Data Cores Recovered . | . . . . Used . | . . . . Hacking Detections . | . . . . Full Trace Events . | . . . . Feedback Events . | . . . . Feedback Blocked . | . . . . Robot Schematics Acquired . | . . . . Robots Built . | . . . . Authchips . | . . . . Time . | . . . . Total Robot Build Rating . | . . . . Part Schematics Acquired . | . . . . Parts Built . | . . . . Authchips . | . . . . Time . | . . . . Total Part Build Rating . | . . . . Parts Repaired . | . . . . Time . | . . . . Parts Recycled . | . . . . Recycled Matter . | . . . . Retrieved Matter . | . . . . Retrieved Components . | . . . . Parts Scanalyzed . | . . . . Part Schematics Acquired . | . . . . Parts Damaged . | . . . . Bothacking | -11 -10 -9 -9 ------------ Run | Scr Mat Mat Sto Used RIF Installer . | . . . . Robots Hacked 5 | . . 2 3 Non-combat 2 | . . 1 1 Combat 3 | . . 1 2 Robot Hacks Applied 8 | . . 2 6 parse_system 1 | . . . 1 find_terminals 2 | . . 1 1 find_shortcuts 3 | . . 1 2 find_garrison 2 | . . . 2 Relay Couplers Released . | . . . . Fabnet Peak Effective % . | . . . . Robots Rewired . | . . . . Allies Hacked . | . . . . Hacks Repelled . | . . . . Allies | -11 -10 -9 -9 -------- Run | Scr Mat Mat Sto Total Allies . | . . . . Largest Group . | . . . . Highest-Rated Group . | . . . . Highest-Rated Ally . | . . . . Total Orders . | . . . . Ally Attacks . | . . . . Total Damage . | . . . . Kills . | . . . . Allies Corrupted . | . . . . Allies Melted . | . . . . Intel | -11 -10 -9 -9 ------- Run | Scr Mat Mat Sto Robot Analysis Total 3 | 1 . 2 . Derelict Logs Recovered . | . . . . Drone Launches . | . . . . Drone Recoveries . | . . . . Exploration | -11 -10 -9 -9 ------------- Run | Scr Mat Mat Sto Turns Passed 351 | 23 74 79 175 Spaces Moved 349 | 44 88 84 133 Core 54 | 39 . 1 14 Treads . | . . . . Legs 82 | . . 5 77 Wheels 167 | 5 88 74 . Hover 46 | . . 4 42 Flight . | . . . . Fastest Speed 50 | 50 80 50 50 Average Speed 82 | 53 80 80 93 Slowest Speed 150 | 80 80 120 150 Overloaded Moves . | . . . . Propulsion Burnouts . | . . . . Robots Hopped . | . . . . Cave-ins Triggered . | . . . . Exploration Rate (%) 11 | 4 15 8 19 Regions Visited 3 Branch Regions 1 Pre-discovered Areas . | . . . . Known Exits Taken . | . . . . Unknown Exits Taken 3 | 1 1 1 . Scrap Searched . | . . . . Spaces Dug 1 | . 1 . . Terrain Destroyed 1 | . 1 . . Melee . | . . . . Projectile 1 | . 1 . . AOE . | . . . . Terrain Rammed 4 | . . 1 3 Walls Destroyed . | . . . . Machines Disabled . | . . . . Actions | -11 -10 -9 -9 --------- Run | Scr Mat Mat Sto Total 392 | 43 88 94 167 Wait 4 | . . 3 1 Move 346 | 43 87 83 133 Hop . | . . . . Pick Up . | . . . . Fast Attach . | . . . . Attach . | . . . . Detach . | . . . . Swap . | . . . . Drop . | . . . . Fire 11 | . 1 . 10 Melee 11 | . . . 11 Ram 20 | . . 8 12 Kick . | . . . . Crush . | . . . . Escape Stasis . | . . . . Rewire . | . . . . Trap . | . . . . Miscellaneous . | . . . . Route ------- -11/Scrapyard -10/Materials -9/Materials -9/Storage History --------- Turn | Location | Event 8 | -11/Scrapyard | Discovered new exit (range 13) 24 | -11/Scrapyard | Entered Materials 78 | -10/Materials | Discovered new exit (range 13) 98 | -10/Materials | Entered another Materials area 175 | -9/Materials | Discovered new exit (range 5) 177 | -9/Materials | Entered Storage 345 | -9/Storage | Core integrity fell below 50% 350 | -9/Storage | Core integrity fell below 20% 352 | -9/Storage | Destroyed by S-10 Pest with Light Assault Rifle Last Messages --------------- 00292_ D2HVFDXXLYIJG18BB8NJ0OY: 00303_ Datajack destroyed. 00305_ Slammed into G-34 Mercenary. 00306_ Released control of O-16 Technician. 00308_ Took control of G-34 Mercenary. 00313_ O-16 Technician destroyed. 00319_ Aluminum Leg destroyed. 00324_ K-01 Serf cleans the Storage Shell. 00331_ K-01 Serf destroyed. 00339_ Kicked Door. 00339_ Destabilizing: Core damaged (-12). 00339_ Aluminum Leg broken. 00339_ Destabilizing: Short circuit. 00342_ O-16 Technician: "IFF HANDSHAKE FAILED. SECURING TERMINAL." 00343_ Released control of G-34 Mercenary. 00344_ ALERT: Hostiles spotted, dispatching reinforcements to Terminal S011. 00345_ Slammed into Y-45 Defender. 00347_ Destabilizing: System corrupted (+2). 00347_ Critical hit (Burn: +37). 00348_ Slammed into Y-45 Defender. Map ----- +----------------------------------------------------+ | ?????????????????????????????????????????????????? | | ?????????????????????????????????????????????????? | | ?????????????????????????????????????????????????? | | ?????????????????????????????????????????????????? | | ?????????????????????????????????????????????????? | | ?????????????????????????????????????????????????? | | ?????????????????????????????????????????????????? | | ?????????????????????????????????????????????????? | | ?????????????????????????????????????????????????? | | ?????????????????????????????????????????????????? | | ?????????????????????????????????????????????????? | | ?????????????????????????????????????????????????? | | ?????????????????????????????????????????????????? | | ?????????????????????????????????????????????????? | | ?????????????????????????????????????????????????? | | ?????????????????????????????????????????????????? | | ?????????????????????????????????????????????????? | | ?????????????????????????????????????????????????? | | ?????????????????????????????????????????????????? | | ?????????????????????????????????????????????????? | | ??????????????????????????????????????????? ????? | | ??????????????????????????????????????????? ????? | | ???????? ??????????????????????????????# #???? | | ??????? ????????###########???????# #???? | | ??????? #####Yg #???????# #???? | | ??????? a g%s@"""" #???????# #???? | | ??????????????## ########s"??"" = #???????# #???? | | ????????????????????????#%"???""%!#???????# #???? | | ????????????????????????#Y"????" #???????# #???# | | ????????????????????????# "???" #???????# #???# | | ????????????????????????# """" #???????# #???# | | ????????????????????????# #?????### ##??# | | ????????????????????#########"########### #??# | | ????????????????????# = #??# | | ????????????????????# % T #??# | | ????????????????????# #?## | | ????????????????????################"#### #?# | | ?????????????????????????????????#T #?## ##### | | ?????????????????????????????????###"##??# * | | ?????????????????????????????????????????# ##### | | ?????????????????????????????????????????# #???? | | ?????????????????????????????????????????# #???? | | ?????????????????????????????????????????# #???? | | ?????????????????????????????????????????# #???? | | ?????????????????????????????????????????# #???? | | ?????????????????????????????????????????# ###?? | | ?????????????????????????????????????????# + "?? | | ?????????????????????????????????????????#####T#?? | | ?????????????????????????????????????????????###?? | | ?????????????????????????????????????????????????? | +----------------------------------------------------+ Best States ------------- Heat Dissipation 25 Energy Generation 15 Energy Capacity 200 Sight Range 16 Terrain Scan Range 16 Terrain Scan Density 10 Evasion (%) 55 Offensive Hacking 10 Item Schematics ----------------- None Robot Schematics ------------------ None Fabricated ------------ Nothing Alien Tech Used ----------------- None Achievements -------------- None Challenges ------------ None Polymind | -11 -10 -9 -9 ---------- Run | Scr Mat Mat Sto Hosts 6 | 1 . 2 3 Combat Hostiles 3 | . . 1 2 Allies . | . . . . Unique Host Classes 3 | 1 . 2 . Average Host Suspicion 67 | . 23 63 91 Unsuspicious Activity 9 | 2 . 7 . Returns to Shadow . | . . . . Fuzzy Dispatches . | . . . . Protomatter Created . | . . . . Used 60 | 5 . 20 35 Decayed . | . . . . Highest Spend 15 | 5 . 15 15 Top 5 Hosts by Kills: G-34 Mercenary (-9/Storage: 1) Game ------ Seed FrostSupersonicBoomstick Manual? 0 Play Time 00:08:34 Cumulative 179.3 hours Start 2022.12.30 @ 11:36:30 End 2022.12.30 @ 11:44:30 Sessions 1 Manual Loads 0 Difficulty Rogue Special Mode Winter2022/Polymind Game No. 129 Rogue 129 Adventurer 0 Explorer 0 Win Type - Total 0 Types 0/0/0/0/0/0/0/0/0 Lore% 40 Gallery% 57 Achievement% 43 Wizard Run 0 Options --------- ASCII 0 Keyboard 0 Movement Numpad Keybinds 0 Fullscreen 1 Font 16/Smallcaps Map View 112x50 Tactical HUD 1 Map Filters NONE Filters NONE Steam 1 RUN: 4cc7757b-66d1-4360-bacd-e6516956b3af